Workbook

Sheet Sheet1
A2: This tool helps designers calculate the total PoE+ draw for daisy-chained EX endpoints
A3: When the total draw, or number of endpoints is exceeded, the required quantity of power supplies is indicated for each daisy-chain
A4: 1. Enter the number of EX-UH endpoints in the daisy-chain.
A5: 2. For each microphone type, enter the number of microphones into the column according to how many will be wired to each EX-ML.
A6: 3. Push button/LED rings are calculated separately. Enter the quantity for each into each column according to how many will be wired to each EX-ML.
A7: 4. The total PoE+ draw, qauntity of each EX endpoint and microphones and total number of Dante input/output channels will be calculated.
A8: 5. Use the clear button to reset the values.
E10: EX-UH
E13: EX-4ML | H13: EX-8ML
A15: EX-4ML, EX-8ML and EX-UH wattages | B15: 4.25 | C15: # of Mics | D15: Device Draw | E15: 3.53 | F15: Total 4MLs | G15: Total Mic Power | H15: 4.56 | I15: Total 8MLS | J15: Total Mic/Light Ring Power | K15: Toatl Mics | L15: Total EX-ML Dante Channels
A16: Microphones
A17: AudioTechnica ES94x | C17: 1 | D17: =29.25*0.00538 -> 0.157365 | I17: =ROUNDUP(H17*$C17/8,0) -> 0 | J17: =H17*D17 -> 0 | K17: =$E17+$H17 -> 0 | L17: =$K17*$C17 -> 0
A18: Clockaudio CS 1S-RF | C18: 1 | D18: =0.015*12+0.27 -> 0.45 | F18: =ROUNDUP(E18*$C18/4,0) -> 0 | G18: =E18*D18 -> 0 | I18: =ROUNDUP(H18*$C18/8,0) -> 0 | J18: 0 | K18: 0 | L18: 0
A19: Clockaudio CS 2S-RF | C19: 2 | D19: =0.015*12+0.27*2 -> 0.72 | F19: 0 | G19: 0 | I19: =ROUNDUP(H19*$C19/8,0) -> 0 | J19: 0 | K19: 0 | L19: 0
A20: Clockaudio CS 3S-RF | C20: 3 | D20: =0.015*12+0.27*3 -> 0.99 | F20: 0 | G20: 0 | I20: 0 | J20: 0 | K20: 0 | L20: 0
A21: Clockaudio C011E-RF | C21: 1 | D21: =0.27 -> 0.27 | F21: 0 | G21: 0 | I21: 0 | J21: 0 | K21: 0 | L21: 0
A22: Clockaudio C012E-RF | C22: 1 | D22: =0.27 -> 0.27 | F22: 0 | G22: 0 | I22: =ROUNDUP(H22*$C22/8,0) -> 0 | J22: 0 | K22: 0 | L22: 0
A23: Earthworks IMBL30 (+LED) | C23: 1 | D23: 1.32 | F23: 0 | G23: 0 | I23: =ROUNDUP(H23*$C23/8,0) -> 0 | J23: 0 | K23: 0 | L23: 0
A24: Sennheiser ME 34 | C24: 1 | D24: =0.00025*48 -> 0.012 | F24: 0 | G24: =E24*D24 -> 0 | I24: =ROUNDUP(H24*$C24/8,0) -> 0
A25: Sennheiser ME 35 | C25: 1 | D25: =0.00025*48 -> 0.012 | F25: 0 | G25: 0 | I25: =ROUNDUP(H25*$C25/8,0) -> 0
A26: Sennheiser ME 36 | C26: 1 | D26: =0.00025*48 -> 0.012 | F26: 0 | G26: 0
A27: Sennheiser MEB 102-L | C27: 1 | D27: =12*0.003+48*0.003 -> 0.18 | F27: =ROUNDUP(E27*$C27/4,0) -> 0 | G27: =E27*D27 -> 0
A28: Sennheiser MEB 104-L | C28: 1 | D28: =12*0.003+48*0.003 -> 0.18 | F28: 0 | G28: =E28*D28 -> 0
A29: Shure MX41xD/S | C29: 1 | D29: =5.14-4.99 -> 0.15 | F29: 0 | G29: =E29*D29 -> 0 | I29: =ROUNDUP(H29*$C29/8,0) -> 0 | J29: =H29*D29 -> 0 | K29: =$E29+$H29 -> 0 | L29: =$K29*$C29 -> 0
A30: Shure MX395 | C30: 1 | D30: =4*D29 -> 0.6 | F30: 0 | G30: 0 | I30: 0 | J30: =H30*D30 -> 0 | K30: =$E30+$H30 -> 0 | L30: =$K30*$C30 -> 0
A31: Shure MX396-2 | C31: 2 | D31: =7.73-6.73 -> 1 | F31: 0 | G31: 0 | I31: 0 | J31: =H31*D31 -> 0 | K31: =$E31+$H31 -> 0 | L31: =$K31*$C31 -> 0
A32: Shure MX396-3 | C32: 3 | D32: =7.89 - 6.73 -> 1.16 | F32: 0 | G32: 0 | I32: 0 | J32: =H32*D32 -> 0 | K32: =$E32+$H32 -> 0 | L32: =$K32*$C32 -> 0
A33: Push Button/LED Rings (add these with mic)
A34: AudioTechnica AT8657/LED | C34: 1 | D34: =0.00544*12 -> 0.06528 | G34: =E34*D34 -> 0 | J34: =H34*D34 -> 0
A35: Clockaudio TS-001 | C35: 1 | D35: 0.1 | G35: =E35*D35 -> 0 | J35: =H35*D35 -> 0
A36: Clockaudio CH-32 | C36: 1 | D36: 0.1 | G36: 0 | J36: =H36*D36 -> 0
A37: Harry Joseph "Hushbutton" | C37: 1 | D37: =0.06*12 -> 0.72 | G37: =E37*D37 -> 0 | J37: =H37*D37 -> 0
A38: Sennheiser MAS 1 | C38: 1 | D38: =0.006*12 -> 0.072 | G38: =E38*D38 -> 0
A39: Sennheiser MAT 153-S | C39: 1 | D39: =0.0037*12 -> 0.0444 | G39: =E39*D39 -> 0
A41: Totals
B42: EX-UH | E42: EX-4ML | H42: EX-8ML
A43: Total PoE+ wattage | B43: =(E12*B15) -> 0 | E43: =SUM(F17:F32)*E$15+SUM(G17:G37) -> 0 | H43: =SUM(I17:I32)*H$15+SUM(J$17:J$37) -> 0 | M43: =SUM(B43:H43) -> 0 | N43: Should be <24 W
A44: Total # EX Endpoints | B44: =E12 -> 0 | E44: =SUM(F17:F32) -> 0 | H44: =SUM(I17:I32) -> 0 | M44: =SUM(B44:H44) -> 0 | N44: Each daisy chain should not exceed 6 devices
A45: Total # Mics | B45: =SUM(K17:K32) -> 0
A46: Total # Dante Input Channels | B46: =E12*4+SUM($L17:$L32) -> 0
A47: Total # of Dante Output Channels | B47: =E12*3 -> 0
A48: =IF(M$43>=24,"Total PoE+ draw is exceeded. An external power supply is required.", " ") -> 
A49: =IF(M$44>3,"Number of PoE+ daisy-chainable devices has been exceeded. An external power supply is required.", " ") -> 
A50: =IF(M$44>6, CONCATENATE("Separate endpoints into ", ROUNDUP(M$44/6,0), " daisy-chains of 6 devices or less.")," ") -> 
A51: =IF(M43/60>1, CONCATENATE(ROUNDUP(M43/60,0)," Power Supplies are Required"), CONCATENATE(ROUNDUP(M43/60,0)," Power Supply is Required")) -> 0 Power Supply is Required
A53: Select Power Supply Based Upon Region
B54: 800446-1110 | E54: US
B55: 800446-4110 | E55: UK
B56: 800446-2110 | E56: EU
B57: 800446-5110 | E57: Australia
B58: 800446-3110 | E58: Japan
N60: Rev 6/27/2018
